bitfinex/quotes_ETHUSD_20250611
["timestamp","ask_amount","ask_price","bid_price","bid_amount"]
[1749627380324,4.87636983,2792.3,2792.2,4.87322279]
[1749627380518,4.87636983,2792.3,2792.2,0.959]
[1749627380711,4.87636983,2792.3,2792.2,4.54040534]
[1749627381539,0.1792,2792.3,2792.2,4.54040534]
[1749627382337,4.69716983,2792.8,2792.3,3.58125349]
[1749627382553,0.1792,2792.5,2792.3,3.58125349]
[1749627382750,0.1792,2792.5,2792.4,0.959]
[1749627383054,0.1792,2792.5,2792.4,4.54003136]
[1749627386238,0.1792,2792.5,2792.4,0.959]
[1749627386566,0.1792,2792.5,2792.4,4.54014883]
[1749627387064,0.1792,2792.5,2792.4,14.54014883]
[1749627388323,0.1792,2792.7,2792.5,3.58095644]
[1749627388547,0.1792,2792.7,2792.5,13.58095644]
[1749627389239,0.1792,2792.7,2792.6,0.959]
[1749627390526,1.2078,2792.7,2792.6,0.959]
[1749627390734,1.94840299,2792.7,2792.6,0.959]
[1749627392674,1.94840299,2792.7,2792.3,9.271]
[1749627392880,1.94840299,2792.7,2791.4,0.51]
[1749627392881,0.55,2792.3,2792.1,0.959]
[1749627393092,7.20632989,2792.2,2792.1,0.959]
[1749627393238,1.0081,2792.2,2792.1,1.29191735]
[1749627393596,1.47591,2792.2,2792.1,1.29189443]
[1749627393742,1.47591,2792.2,2792.1,1.29188859]
[1749627393947,1.65511,2792.2,2792.1,0.959]
[1749627394178,1.65511,2792.2,2792.1,1.29187328]
[1749627394342,1.65511,2792.2,2792.1,0.959]
[1749627394343,0.1792,2792.2,2792.1,0.959]
[1749627396175,0.1792,2792.2,2791.7,10.1792]
[1749627396355,0.1792,2792.0,2791.8,0.959]
[1749627396682,1.0267,2792.2,2791.9,0.959]
[1749627396842,1.0267,2792.2,2792.0,0.959]
[1749627397243,0.1792,2792.1,2792.0,0.959]
[1749627402187,4.87636983,2792.1,2792.0,0.959]
[1749627402394,5.46667681,2792.1,2792.0,0.959]
[1749627404996,4.87636983,2792.1,2792.0,0.959]
[1749627406501,4.87636983,2792.1,2791.6,0.3335796]
[1749627406502,5.84396983,2792.1,2791.6,0.3335796]
[1749627406801,0.1792,2791.7,2791.6,0.3335796]
[1749627407001,0.1792,2791.7,2791.6,1.2925796]
[1749627408293,0.1792,2791.7,2791.6,4.87475469]
[1749627409164,0.1792,2791.7,2791.6,1.2925796]
[1749627410396,0.1792,2791.7,2791.6,11.2925796]
[1749627412020,4.69716983,2792.1,2792.0,10.0]
[1749627412369,4.69716983,2792.1,2791.9,10.0]
[1749627414171,0.1792,2792.2,2791.9,10.0]
[1749627414372,0.1792,2792.2,2791.9,3.58168528]
[1749627414801,0.1792,2792.2,2791.9,10.0]
[1749627415791,0.1792,2792.2,2792.0,3.58164748]
[1749627416380,0.1792,2792.2,2791.9,13.58174157]
[1749627416580,0.1792,2792.2,2792.0,12.85363418]
[1749627416979,0.1792,2792.2,2792.1,0.33356302]
[1749627417181,0.1792,2792.2,2792.1,0.33356089]
[1749627417513,0.1792,2792.2,2792.0,9.272]
[1749627417708,0.1792,2792.2,2792.1,0.33356167]
[1749627417920,0.1792,2792.2,2792.0,16.52557905]
[1749627418295,0.1792,2792.2,2792.0,12.944]
[1749627418697,0.1792,2792.2,2792.1,0.33357804]
[1749627419080,0.1792,2792.2,2792.1,10.33357804]
[1749627419287,4.69716983,2792.6,2792.1,13.58147579]
[1749627419483,0.1792,2792.3,2792.2,13.669]
[1749627419684,0.1792,2792.3,2792.2,17.25040534]
[1749627420084,4.69716983,2792.6,2792.3,13.58121]
[1749627420317,4.69716983,2792.6,2792.4,0.959]
[1749627420521,0.1792,2792.5,2792.4,0.959]
[1749627420985,4.87636983,2792.6,2792.4,0.959]
[1749627421707,4.87636983,2792.6,2792.4,4.54014113]
[1749627422101,4.87636983,2792.6,2792.4,0.959]
[1749627422297,4.87636983,2792.6,2792.4,4.54012971]
[1749627422690,4.87636983,2792.6,2792.4,0.959]
[1749627424943,4.87636983,2792.6,2792.4,4.5401341]
[1749627425447,4.69716983,2793.0,2792.5,10.0]
[1749627425634,0.1792,2792.9,2792.8,13.58063592]
[1749627425836,5.72966983,2793.5,2793.1,3.58018106]
[1749627426036,0.1792,2793.2,2793.1,13.58018106]
[1749627426237,0.1792,2793.2,2793.1,14.53718106]
[1749627426547,4.69716983,2793.5,2793.2,3.58002465]
[1749627426755,4.69716983,2793.5,2793.3,13.57999498]
[1749627427055,0.38022333,2793.6,2793.5,3.57973867]
[1749627427350,0.20102333,2793.6,2793.5,3.57973867]
[1749627427749,0.20102333,2793.6,2793.5,13.04658256]
[1749627428268,0.20102333,2793.6,2793.5,3.57973867]
[1749627428618,0.20102333,2793.6,2793.5,4.99181662]
[1749627429139,0.20102333,2793.6,2793.5,14.99181662]
[1749627429336,0.20102333,2793.6,2793.5,25.00866051]
[1749627429540,0.20102333,2793.6,2793.5,25.00726658]
[1749627430746,0.20102333,2793.6,2793.5,23.59658256]
[1749627431044,0.1792,2794.6,2794.5,3.57845768]
[1749627431234,0.1792,2794.6,2794.5,23.80345768]
[1749627433033,4.69716983,2795.3,2795.0,3.57774566]
[1749627433232,8.20884475,2797.4,2795.1,13.672]
[1749627433233,5.72646983,2796.1,2795.1,13.672]
[1749627433432,5.72646983,2796.1,2795.3,3.57743354]
[1749627433433,0.1792,2795.4,2795.3,3.57743354]
[1749627433635,0.1792,2795.4,2795.3,8.21243354]
[1749627434756,0.1792,2795.4,2795.3,4.635]
[1749627434961,0.1792,2795.4,2795.3,8.21243354]
[1749627436137,0.1792,2795.4,2794.7,0.51]
[1749627436354,0.57264698,2796.0,2794.8,0.956]
[1749627436355,0.1792,2795.0,2794.8,0.956]
[1749627436676,0.1792,2794.9,2794.8,0.956]
[1749627436827,1.0766,2795.4,2795.0,3.5777772]
[1749627437033,0.1792,2795.1,2795.0,3.5777772]
[1749627437375,1.0766,2795.4,2794.9,7.25794188]
[1749627437664,0.1792,2795.2,2795.0,3.5777305]
[1749627438525,0.1792,2795.2,2795.1,13.57768952]
[1749627438726,4.69716983,2795.3,2795.2,3.57756153]
[1749627439076,4.87636983,2795.3,2795.2,3.57756153]
[1749627439274,0.1792,2795.3,2795.2,3.57756153]
[1749627439830,0.1792,2795.3,2795.1,17.25659268]
[1749627440029,0.1792,2795.3,2795.1,13.679]
[1749627440474,0.1792,2795.3,2795.1,17.25666963]
[1749627440647,0.1792,2795.3,2795.2,3.57756153]
[1749627441233,0.1792,2795.3,2795.1,17.25662722]
[1749627441765,0.1792,2795.3,2795.2,3.57756153]
[1749627441939,0.1792,2795.3,2795.1,17.25663749]
[1749627442264,0.1792,2795.3,2795.2,3.57756153]
[1749627442858,0.1792,2795.3,2795.2,4.53356153]
[1749627445052,0.1792,2795.3,2795.2,0.956]
[1749627445564,0.1792,2795.3,2795.2,4.53356153]
[1749627450273,4.69716983,2795.6,2795.3,3.57741113]
[1749627450452,4.69716983,2795.6,2795.5,3.5771776]
[1749627450647,4.69716983,2795.6,2795.4,3.5772582]
[1749627450840,0.1792,2795.5,2795.4,3.5772582]
[1749627451779,4.69716983,2795.6,2795.5,3.5771776]
[1749627452142,4.69716983,2795.6,2795.5,7.2471776]
[1749627455577,0.1792,2795.8,2795.7,3.5769217]
[1749627456266,0.1792,2795.8,2795.7,22.8369217]
[1749627459041,1.2027,2795.8,2795.7,10.218]
[1749627461414,5.89986983,2795.8,2795.7,10.218]
[1749627463911,6.48985681,2795.8,2795.7,10.218]
[1749627464903,5.89986983,2795.8,2795.7,10.218]
[1749627465215,4.87636983,2795.8,2795.7,23.7949217]
[1749627465501,4.87636983,2795.8,2795.7,31.38812157]
[1749627465866,4.87636983,2795.8,2795.7,25.20350473]
[1749627466599,4.87636983,2795.8,2795.7,23.7949217]
[1749627469009,4.87636983,2795.8,2795.7,20.218]
[1749627469212,4.87636983,2795.8,2795.7,23.7949217]
[1749627470814,4.87636983,2795.8,2795.7,27.4539217]
[1749627472476,4.69716983,2795.8,2795.7,27.4539217]
[1749627475021,4.69716983,2795.8,2795.7,29.56679625]
[1749627476449,0.1792,2795.9,2795.8,3.57679376]
[1749627477293,4.69716983,2796.1,2796.0,3.57653791]
[1749627477519,4.87636983,2796.1,2796.0,3.57653791]
[1749627477729,4.87636983,2796.1,2796.0,4.99098672]
[1749627478415,4.87636983,2796.1,2796.0,1.41444881]
[1749627479649,4.87636983,2796.1,2796.0,4.99098672]
[1749627480019,4.87636983,2796.1,2796.0,14.99098672]
[1749627480220,4.87636983,2796.1,2796.0,13.57653791]
[1749627480221,4.69716983,2796.1,2796.0,13.57653791]
[1749627481921,27.401858,2796.4,2796.3,13.5761542]
[1749627482124,27.401858,2796.4,2796.3,17.2341542]
[1749627482523,27.401858,2796.4,2796.3,10.958]
[1749627482729,27.401858,2796.4,2796.3,2.12167182]
[1749627482730,30.4225338,2796.4,2796.3,2.12167182]
[1749627483063,30.4225338,2796.4,2796.3,2.37273385]
[1749627483564,30.4225338,2796.4,2796.3,0.958]
[1749627483852,27.581058,2796.4,2796.3,2.37273385]
[1749627484462,27.581058,2796.4,2796.3,4.99088805]
[1749627485059,27.401858,2796.4,2796.3,4.5331542]
[1749627486021,27.401858,2796.4,2796.3,5.94735106]
[1749627486223,27.401858,2796.4,2796.3,4.5331542]
[1749627486540,27.401858,2796.4,2796.3,5.94726317]
[1749627488222,27.401858,2796.4,2796.3,4.5331542]
[1749627488558,27.401858,2796.4,2796.3,5.94685463]
[1749627488858,27.401858,2796.4,2796.3,4.5331542]
[1749627489529,27.401858,2796.4,2796.3,10.71777104]
[1749627489725,27.401858,2796.4,2796.3,10.89697104]
[1749627490223,27.401858,2796.4,2796.3,1.1322]
[1749627490423,27.401858,2796.4,2796.3,4.7083542]
[1749627490849,27.401858,2796.4,2796.3,6.83002602]
[1749627491420,27.401858,2796.4,2796.3,4.7083542]
[1749627493760,27.401858,2796.4,2796.3,8.37245414]
[1749627494359,27.401858,2796.4,2796.3,10.49136424]
[1749627494541,27.401858,2796.4,2796.3,10.49136321]
[1749627494726,27.401858,2796.4,2796.3,8.37245414]
[1749627495437,27.401858,2796.4,2796.3,10.49140926]
[1749627495959,27.401858,2796.4,2796.3,8.37245414]
[1749627497560,27.401858,2796.4,2796.3,10.49067727]
[1749627497759,27.401858,2796.4,2796.3,8.37245414]
[1749627499176,27.401858,2796.4,2796.3,10.31037646]
[1749627500749,27.401858,2796.4,2796.3,8.19225414]
[1749627501545,27.401858,2796.4,2796.3,10.31077681]
[1749627501745,27.401858,2796.4,2796.3,8.19225414]
[1749627502477,27.401858,2796.4,2796.3,4.53525414]
[1749627503355,27.401858,2796.4,2796.3,4.71445414]
[1749627506072,27.401858,2796.4,2796.3,13.97045414]
[1749627507971,27.401858,2796.4,2796.3,17.44825414]
[1749627509248,27.401858,2796.4,2796.3,12.83825414]
[1749627509473,27.401858,2796.4,2796.3,17.44825414]
[1749627510600,30.40737593,2796.4,2796.3,20.21509994]
[1749627510744,30.40737593,2796.4,2796.3,22.33702732]
[1749627511147,30.40737593,2796.4,2796.3,21.38402732]
[1749627511577,30.40737593,2796.4,2796.3,24.96018152]
[1749627511781,28.426658,2796.4,2796.3,25.91318152]
[1749627513493,28.426658,2796.4,2796.3,11.38402732]
[1749627513691,28.426658,2796.4,2796.3,11.63009929]
[1749627513991,28.426658,2796.4,2796.3,10.21509994]
[1749627514956,32.083658,2796.4,2796.3,10.21509994]
[1749627515156,35.3098638,2796.4,2796.3,10.21509994]
[1749627515586,28.426658,2796.4,2796.3,10.21509994]
[1749627515885,28.426658,2796.4,2796.3,13.79125414]
[1749627516084,27.401858,2796.4,2796.3,21.39087033]
[1749627516255,27.401858,2796.4,2796.3,15.20625349]
[1749627516458,27.401858,2796.4,2796.3,13.79125414]
[1749627517165,27.401858,2796.4,2796.3,10.676891]
[1749627517365,27.401858,2796.4,2796.3,11.62891477]
[1749627518900,28.430858,2796.4,2796.3,10.67691477]
[1749627519073,31.1888838,2796.4,2796.3,10.21409994]
[1749627521198,31.1888838,2796.4,2796.3,10.21509994]
[1749627523178,34.8458838,2796.4,2796.3,10.21509994]
[1749627524114,31.1888838,2796.4,2796.3,10.21509994]
[1749627524315,34.8458838,2796.4,2796.3,10.21509994]
[1749627525475,34.8458838,2796.4,2796.3,0.953]
[1749627525774,34.8458838,2796.4,2796.3,0.95636045]
[1749627527388,32.087858,2796.4,2796.3,0.95636045]
[1749627527800,31.058858,2796.4,2796.3,0.95636045]
[1749627528272,27.401858,2796.4,2796.3,0.95636045]
[1749627532614,32.09902783,2796.4,2796.3,0.95636045]
[1749627535102,32.09902783,2796.4,2796.3,10.21336045]
[1749627536335,33.13952783,2796.4,2796.3,10.21336045]
[1749627537204,33.13952783,2796.4,2796.3,9.26036045]
[1749627537444,34.4498256,2796.4,2796.3,10.21336045]
[1749627538025,33.13952783,2796.4,2796.3,10.21336045]
[1749627538354,32.09902783,2796.4,2796.3,32.09605887]
[1749627538515,32.09902783,2796.4,2796.3,29.97413149]
[1749627540607,32.09902783,2796.4,2796.3,30.15333149]
[1749627540804,32.09902783,2796.4,2796.3,30.48542593]
[1749627541007,32.09902783,2796.4,2796.3,30.15333149]
[1749627541349,27.401858,2796.4,2796.3,23.96871465]
[1749627544358,27.401858,2796.4,2796.3,24.29916849]
[1749627544855,27.401858,2796.4,2796.3,23.96871465]
[1749627545055,27.401858,2796.4,2796.3,24.29917717]
[1749627545220,27.401858,2796.4,2796.3,23.96871465]
[1749627545420,27.401858,2796.4,2796.3,24.29917645]
[1749627545622,27.401858,2796.4,2796.3,24.29915966]
[1749627546083,27.401858,2796.4,2796.3,24.29915616]
[1749627546547,27.401858,2796.4,2796.3,23.01571465]
[1749627546726,27.401858,2796.4,2796.3,27.62371465]
[1749627547762,27.401858,2796.4,2796.3,27.95414608]
[1749627548162,27.401858,2796.4,2796.3,27.95437357]
[1749627548461,27.401858,2796.4,2796.3,27.62371465]
[1749627549132,27.401858,2796.4,2796.3,27.9544459]
[1749627549362,27.401858,2796.4,2796.3,27.95444193]
[1749627549956,27.401858,2796.4,2796.3,27.62371465]
[1749627550157,27.401858,2796.4,2796.3,27.95448486]
[1749627550359,27.401858,2796.4,2796.3,27.62371465]
[1749627551267,27.401858,2796.4,2796.3,27.95448818]
[1749627551437,27.401858,2796.4,2796.3,27.62371465]
[1749627551639,27.401858,2796.4,2796.3,27.95466172]
[1749627551836,27.401858,2796.4,2796.3,27.95465491]
[1749627552060,27.401858,2796.4,2796.3,27.62371465]
[1749627552259,27.401858,2796.4,2796.3,33.80833149]
[1749627552878,27.401858,2796.4,2796.3,34.13929009]
[1749627553380,27.401858,2796.4,2796.3,34.13928675]
[1749627553542,27.401858,2796.4,2796.3,34.1392877]
[1749627553738,27.401858,2796.4,2796.3,33.80833149]
[1749627554781,27.401858,2796.4,2796.3,34.13932015]
[1749627555380,27.401858,2796.4,2796.3,27.62371465]
[1749627556178,27.401858,2796.4,2796.3,27.95482901]
[1749627556376,27.401858,2796.4,2796.3,23.34682882]
[1749627556576,27.401858,2796.4,2796.3,27.77562882]
[1749627556878,27.401858,2796.4,2796.3,24.12064571]
[1749627557081,31.2516338,2796.4,2796.3,5.78012597]
[1749627557263,39.78400363,2796.4,2796.3,0.95536045]
[1749627557734,39.78400363,2796.4,2796.3,1.28779785]
[1749627557936,39.78400363,2796.4,2796.3,0.95536045]
[1749627559369,39.78400363,2796.4,2796.3,1.2877951]
[1749627559679,36.12800363,2796.4,2796.3,0.95536045]
[1749627559874,39.78400363,2796.4,2796.3,1.28779079]
[1749627560045,36.12800363,2796.4,2796.3,1.28779079]
[1749627560370,27.401858,2796.4,2796.3,21.04842077]
[1749627560574,27.401858,2796.4,2796.3,20.71613149]
[1749627561077,27.401858,2796.4,2796.3,14.53151465]
[1749627561859,27.401858,2796.4,2796.3,14.86377279]
[1749627562057,27.401858,2796.4,2796.3,14.53151465]
[1749627562260,27.401858,2796.4,2796.3,14.86376574]
[1749627562465,27.401858,2796.4,2796.3,14.53151465]
[1749627563453,27.401858,2796.4,2796.3,11.28761407]
[1749627563658,27.401858,2796.4,2796.3,10.95536045]
[1749627563857,30.2604638,2796.4,2796.3,0.33562832]
[1749627564043,34.8660638,2796.4,2796.3,0.95536045]
[1749627564364,34.8660638,2796.4,2796.3,1.28774636]
[1749627564694,34.8660638,2796.4,2796.3,0.95536045]
[1749627565178,39.56323363,2796.4,2796.3,0.95536045]
[1749627565778,39.56323363,2796.4,2796.3,0.952]
[1749627565779,39.59063363,2796.4,2796.3,0.952]
[1749627565979,39.59063363,2796.4,2796.3,0.96279887]
[1749627570706,35.93463363,2796.4,2796.3,0.96279887]
[1749627570870,39.59063363,2796.4,2796.3,0.96279887]
[1749627571258,35.93463363,2796.4,2796.3,0.96279887]
[1749627571614,39.59063363,2796.4,2796.3,0.96279887]
[1749627572218,35.93463363,2796.4,2796.3,0.96279887]
[1749627572383,39.59063363,2796.4,2796.3,0.96279887]
[1749627572700,35.93463363,2796.4,2796.3,0.96279887]
[1749627572906,39.59063363,2796.4,2796.3,0.96279887]
[1749627573074,36.73202783,2796.4,2796.3,0.96279887]
[1749627576091,35.75502783,2796.4,2796.3,0.96279887]
[1749627576859,32.09902783,2796.4,2796.3,10.72356991]
[1749627577061,27.401858,2796.4,2796.3,10.72356991]
[1749627578306,27.401858,2796.4,2796.3,4.53895307]
[1749627578474,27.401858,2796.4,2796.3,0.96279887]
[1749627578663,27.401858,2796.4,2796.3,1.29418381]
[1749627578864,27.401858,2796.4,2796.3,4.53895307]
[1749627579057,27.401858,2796.4,2796.3,4.87033639]
[1749627579263,27.401858,2796.4,2796.3,6.28408509]
[1749627579791,27.401858,2796.4,2796.3,6.28417169]
[1749627579991,27.401858,2796.4,2796.3,5.95270177]
[1749627580579,27.401858,2796.4,2796.3,12.13731861]
[1749627580779,27.401858,2796.4,2796.3,7.13661684]
[1749627581004,27.401858,2796.4,2796.3,23.17093165]
[1749627581431,27.401858,2796.4,2796.3,23.1710219]
[1749627581627,27.401858,2796.4,2796.3,22.83948563]
[1749627581927,27.401858,2796.4,2796.3,15.70286879]
[1749627582089,27.401858,2796.4,2796.3,20.31086879]
[1749627582419,27.401858,2796.4,2796.3,20.64236597]
[1749627582584,27.401858,2796.4,2796.3,20.31086879]
[1749627583032,27.401858,2796.4,2796.3,20.64237192]
[1749627583213,27.401858,2796.4,2796.3,20.64238176]
[1749627583418,27.401858,2796.4,2796.3,26.49548563]
[1749627584493,27.401858,2796.4,2796.3,24.37472011]
[1749627584692,27.401858,2796.4,2796.3,24.70614019]
[1749627585109,27.401858,2796.4,2796.3,24.70612576]
[1749627585430,27.401858,2796.4,2796.3,24.37472011]
[1749627585926,27.401858,2796.4,2796.3,24.70612389]
[1749627586130,27.401858,2796.4,2796.3,24.70613116]
[1749627586451,27.401858,2796.4,2796.3,24.70612949]
[1749627586993,27.401858,2796.4,2796.3,24.70627385]
[1749627587237,27.401858,2796.4,2796.3,24.37472011]
[1749627587798,27.401858,2796.4,2796.3,24.70625618]
[1749627588012,27.401858,2796.4,2796.3,24.70625612]
[1749627588839,27.401858,2796.4,2796.3,24.37472011]
[1749627589402,27.401858,2796.4,2796.3,24.70626152]
[1749627589639,27.401858,2796.4,2796.3,33.96226152]
[1749627590145,27.401858,2796.4,2796.3,34.18072011]
[1749627590347,27.401858,2796.4,2796.3,35.00366167]
[1749627590548,27.401858,2796.4,2796.3,34.18072011]
[1749627591103,17.51386223,2796.4,2796.3,35.00353488]
[1749627591307,16.68917973,2796.4,2796.3,34.67204746]
[1749627591641,16.68917973,2796.4,2796.3,35.00350955]
[1749627591642,11.91588257,2796.4,2796.3,35.00350955]
[1749627591820,11.91588257,2796.4,2796.3,25.2098168]
[1749627592003,10.51949007,2796.4,2796.3,25.0008396]
[1749627592205,10.51949007,2796.4,2796.3,25.00082898]
[1749627592406,9.47807082,2796.4,2796.3,24.66937573]
[1749627592623,0.04,2796.9,2796.3,24.66937573]
[1749627592624,0.04,2796.9,2796.4,0.55]
[1749627592848,1.0393,2798.3,2796.9,0.55]
[1749627593046,1.2177,2798.3,2797.8,9.75885374]
[1749627593244,1.2177,2798.3,2797.8,15.24700286]
[1749627593245,1.0393,2798.3,2797.8,15.24700286]
[1749627593545,1.0393,2798.3,2797.8,15.42540286]
[1749627593847,1.0393,2799.4,2798.6,3.5731243]
[1749627594004,1.0393,2799.4,2798.7,9.255]
[1749627594348,1.0393,2798.8,2798.7,9.255]
[1749627594507,1.2177,2798.8,2798.7,10.53623419]
[1749627594706,1.2177,2798.8,2798.7,10.207]
[1749627595122,1.2177,2798.8,2798.7,10.53624349]
[1749627595442,1.2177,2798.8,2798.7,10.207]
[1749627596147,1.2177,2798.8,2798.7,9.255]
[1749627596532,1.2177,2798.8,2798.7,10.206]
[1749627596934,1.0354,2798.7,2798.0,1.05566595]
[1749627597112,6.18461684,2798.4,2798.1,0.951]
[1749627597313,0.9969,2798.3,2798.1,0.951]
[1749627597908,0.1784,2798.2,2798.1,0.951]
[1749627598147,0.1784,2798.2,2797.8,9.253]
[1749627598444,0.9969,2798.3,2798.1,0.951]
[1749627598649,0.9969,2798.3,2797.8,9.253]
[1749627598650,0.89655168,2798.2,2797.8,9.253]
[1749627598807,0.71815168,2798.2,2797.9,1.28042959]
[1749627599007,0.22531,2798.6,2798.1,10.0]
[1749627599008,1.25581,2798.6,2798.1,10.0]
[1749627599213,0.1784,2798.5,2798.1,17.24575949]
[1749627599418,0.1784,2798.5,2798.2,3.57371534]
[1749627599619,0.1784,2798.5,2798.3,0.32922807]
[1749627599818,0.1784,2798.5,2798.2,9.7582975]
[1749627600048,0.1784,2798.5,2798.3,3.673]
[1749627600619,0.1784,2798.5,2798.4,0.951]
[1749627601246,1.2276,2798.5,2798.4,0.951]
[1749627602449,1.2276,2798.5,2797.9,10.1784]
[1749627602633,1.0492,2798.5,2798.0,0.951]
[1749627603037,0.1784,2798.1,2798.0,0.951]
[1749627606571,1.182,2798.1,2797.8,9.253]
[1749627606898,1.182,2798.1,2797.9,0.951]
[1749627607188,4.69716983,2798.0,2797.9,0.951]
[1749627607338,5.44564681,2798.0,2797.9,0.951]
[1749627607539,6.44924681,2798.0,2797.9,0.951]
[1749627607939,5.44564681,2798.0,2797.9,0.951]
[1749627608584,6.41374681,2798.0,2797.9,0.951]
[1749627609239,6.41374681,2798.0,2797.8,9.253]
[1749627609440,1.69207468,2797.9,2797.8,9.253]
[1749627609677,1.69207468,2797.9,2797.8,10.204]
[1749627610271,6.38924451,2797.9,2797.8,10.204]
[1749627613504,6.38924451,2797.9,2797.8,10.22]
[1749627614504,10.06924451,2797.9,2797.8,10.22]
[1749627614826,0.9213,2797.8,2797.7,0.967]
[1749627614974,11.37424379,2797.8,2797.7,1.29748947]
[1749627615182,11.55264379,2797.8,2797.7,0.967]
[1749627615501,1.0141,2797.5,2796.7,1.05296505]
[1749627615660,1.0141,2797.3,2796.8,0.967]
[1749627615861,0.1784,2796.9,2796.8,0.967]
[1749627616062,0.1784,2796.9,2796.8,1.29754998]
[1749627616063,4.87556983,2796.9,2796.8,1.29754998]
[1749627617108,4.87556983,2796.9,2796.8,0.967]
[1749627617905,4.87556983,2796.9,2796.8,1.29773463]
[1749627618390,4.87556983,2796.9,2796.8,0.33073463]
[1749627618604,4.87556983,2796.9,2796.8,0.967]
[1749627618990,4.87556983,2796.9,2796.3,5.26451114]
[1749627619317,0.1784,2796.7,2796.4,3.57601516]
[1749627619616,0.1784,2796.7,2796.5,0.33067708]
[1749627619830,0.1784,2796.7,2796.6,0.33067816]
[1749627620631,0.1784,2796.7,2796.4,3.57601516]
[1749627621177,0.1784,2796.7,2796.5,0.33067427]
[1749627621376,0.1784,2796.7,2796.4,3.57601516]
[1749627621617,0.1784,2796.7,2796.5,0.3306764]
[1749627621916,0.1784,2796.7,2796.6,0.3306764]
[1749627622311,0.1784,2796.7,2796.5,3.57586729]
[1749627622713,0.1784,2796.7,2796.6,0.33067309]
[1749627623030,0.1784,2796.7,2796.5,3.57586729]
[1749627623229,0.1784,2796.7,2796.6,0.33068499]
[1749627623790,0.1784,2796.7,2796.6,3.57577057]
[1749627624096,4.69716983,2796.9,2796.5,3.57588705]
[1749627624097,4.69716983,2796.9,2796.7,3.5756063]
[1749627624432,4.69716983,2796.9,2796.5,1.58571114]
[1749627624729,4.69716983,2796.9,2796.7,0.1784]
[1749627624914,4.69716983,2796.9,2796.8,3.57551487]
[1749627625122,4.69716983,2796.9,2796.8,14.12736239]
[1749627625430,4.69716983,2796.9,2796.8,14.12737169]
[1749627625639,4.69716983,2796.9,2796.8,13.79651487]
[1749627626497,4.69716983,2796.9,2796.8,10.221]
[1749627626697,4.69716983,2796.9,2796.8,14.12756521]
[1749627627017,4.69716983,2796.9,2796.8,14.12756789]
[1749627627224,0.1784,2797.1,2796.9,3.57535508]
[1749627627418,0.1784,2797.1,2796.9,3.575385]
[1749627627623,4.69716983,2797.4,2797.0,3.57517712]
[1749627627822,0.1784,2797.2,2796.8,17.4704909]
[1749627628021,0.1784,2797.2,2797.0,3.5751879]
[1749627628227,4.69716983,2797.4,2796.8,13.895]
[1749627628228,0.1784,2797.3,2797.2,3.5749298]
[1749627628407,4.69716983,2797.4,2797.3,3.57487577]
[1749627628609,4.69716983,2797.4,2797.2,13.57494515]
[1749627628934,4.69716983,2797.4,2797.3,3.57487577]
[1749627629134,4.69716983,2797.4,2797.2,10.0]
[1749627629602,4.69716983,2797.4,2797.3,0.967]
[1749627629965,4.69716983,2797.4,2797.3,1.29800084]
[1749627630670,4.69716983,2797.4,2797.3,1.29820472]
[1749627630871,4.69716983,2797.4,2797.3,0.967]
[1749627631371,5.69216983,2797.4,2797.3,0.967]
[1749627631727,4.69716983,2797.4,2797.3,0.967]
[1749627631932,4.69716983,2797.4,2797.3,1.29822957]
[1749627632346,4.69716983,2797.4,2797.3,0.967]
[1749627633475,4.69716983,2797.4,2797.3,1.29873035]
[1749627633976,5.28422681,2797.4,2797.3,0.967]
[1749627635269,5.28422681,2797.4,2797.3,1.29874806]
[1749627635674,5.28422681,2797.4,2797.3,1.29873795]
[1749627635903,5.28422681,2797.4,2797.3,1.29873306]
[1749627636059,5.28422681,2797.4,2797.3,0.967]
[1749627636984,5.28422681,2797.4,2797.3,1.29868827]
[1749627637481,5.28422681,2797.4,2797.3,1.2989045]
[1749627637666,5.28422681,2797.4,2797.3,1.29891877]
[1749627637873,5.28422681,2797.4,2797.3,1.29891926]
[1749627638183,6.25792681,2797.4,2797.3,0.967]
[1749627638565,6.25792681,2797.4,2797.3,1.29899461]
[1749627638764,6.25792681,2797.4,2797.3,1.29901779]
[1749627639267,6.25792681,2797.4,2797.3,0.967]
[1749627640170,1.0153,2797.2,2796.0,2.82091151]
[1749627640358,1.0153,2797.2,2796.1,0.96]
[1749627640359,7.12084212,2796.6,2796.1,0.96]
[1749627640562,3.676,2796.8,2796.1,0.96]
[1749627640764,0.9416,2796.9,2796.2,3.57619976]
[1749627640969,0.9416,2796.9,2796.1,10.71563265]
[1749627640970,0.9416,2796.9,2796.1,4.53637213]
[1749627641298,0.1784,2796.5,2796.2,10.0]
[1749627641810,0.1784,2796.5,2796.1,11.1392]
[1749627642106,1.40346,2796.9,2796.1,11.1392]
[1749627642107,4.6355,2797.1,2796.1,4.5363671]
[1749627642309,0.1784,2796.7,2796.3,0.1792]
[1749627642808,0.1784,2796.7,2796.4,0.0718]
[1749627643160,0.1784,2796.7,2796.3,0.1792]
[1749627643358,1.0661,2796.6,2796.4,0.96]
[1749627643901,10.37521251,2797.0,2796.4,0.96]
[1749627643902,5.66536698,2797.0,2796.4,0.96]
[1749627644060,0.1784,2796.6,2796.4,0.96]
[1749627644463,1.98536698,2797.0,2796.4,0.96]
[1749627644659,1.98536698,2797.0,2796.4,1.0318]
[1749627644896,0.1784,2796.8,2796.4,1.211]
[1749627645101,0.1784,2796.8,2796.4,10.466]
[1749627645304,0.3947767,2796.8,2796.4,9.4342]
[1749627645462,0.2163767,2796.8,2796.5,0.96]
[1749627645866,10.64464553,2796.6,2796.4,9.255]
[1749627646165,10.64464553,2796.6,2796.5,0.96]
[1749627646817,10.64464553,2796.6,2796.4,9.255]
[1749627646818,9.62034553,2796.6,2796.4,9.255]
[1749627646976,6.78876455,2796.5,2796.4,10.215]
[1749627648580,1.0176,2796.3,2794.8,0.0718]
[1749627648785,10.55,2796.4,2794.8,0.0718]
[1749627648786,0.1792,2795.2,2794.9,0.96]
[1749627650103,0.1792,2795.2,2794.9,10.96]
[1749627650420,0.1792,2795.2,2794.9,0.96]
[1749627650716,0.1792,2795.2,2794.8,0.0718]
[1749627650868,0.1792,2795.2,2795.0,0.96]